Workbook

Sheet Disclaimer
C4: Disclaimer The WAP Living Wage Comparison Calculator tool and data, if any, (“Tool”) are provided by the National Renewable Energy Laboratory (“NREL”), which is operated by Alliance for Sustainable Energy, LLC (“ALLIANCE”), for the U.S. Department of Energy (“DOE”), as well as the National Association for State Community Services Programs (“NASCSP”). Access to and use of this Tool shall impose the following obligations on the user, and use of the Tool constitutes user’s agreement to these terms. The Tool is being provided, without any fee or cost, for internal, noncommercial purposes only and shall not be re-distributed. Please contact the NREL Technology Transfer Office at technology.transfer@nrel.gov for information concerning a commercial license to use the Tool. The user agrees to credit DOE/NREL/ALLIANCE/NASCSP in any publication that results from the use of this Tool. The names DOE/NREL/ALLIANCE/NASCSP, however, may not be used in any advertising or publicity to endorse or promote any products or commercial entities unless specific written permission is obtained from DOE/NREL/ALLIANCE/NASCSP. The user also understands that DOE/NREL/ALLIANCE/NASCSP is not obligated to provide the user with any support, consulting, training or assistance of any kind with regard to the use of the Tool or to provide the user with any updates, revisions or new versions of the Tool. USER AGREES TO INDEMNIFY DOE/NREL/ALLIANCE/NASCSP AND ITS SUBSIDIARIES, AFFILIATES, OFFICERS, AGENTS, AND EMPLOYEES AGAINST ANY CLAIM OR DEMAND, INCLUDING REASONABLE ATTORNEYS' FEES, RELATED TO USER’S USE OF THE TOOL. THE TOOL IS PROVIDED BY DOE/NREL/ALLIANCE/NASCSP "AS IS," AND ANY EXPRESS OR IMPLIED WARRANTIES, INCLUDING BUT NOT LIMITED TO THE IMPLIED WARRANTIES OF MERCHANTABILITY AND FITNESS FOR A PARTICULAR PURPOSE ARE DISCLAIMED. IN NO EVENT SHALL DOE/NREL/ALLIANCE/NASCSP BE LIABLE FOR ANY SPECIAL, INDIRECT OR CONSEQUENTIAL DAMAGES OR ANY DAMAGES WHATSOEVER, INCLUDING BUT NOT LIMITED TO CLAIMS ASSOCIATED WITH THE LOSS OF DATA OR PROFITS, THAT MAY RESULT FROM AN ACTION IN CONTRACT, NEGLIGENCE OR OTHER TORTIOUS CLAIM THAT ARISES OUT OF OR IN CONNECTION WITH THE ACCESS, USE OR PERFORMANCE OF THE TOOL. Results generated by use of this Tool are dependent on multiple variables, including the quality of the data entered by the user and any assumptions made by the user in relation to data inputs. Accordingly, DOE, NREL, ALLIANCE, and NASCSP cannot guarantee any results generated by use of the Tool and user is entirely responsible for the results and any reliance on the results. User shall not claim that DOE/NREL/ALLIANCE/NASCSP authenticate or otherwise agree with the results generated by the Tool. This Tool was authored in part by the NREL under Contract No. DE-AC36-08GO28308. Funding provided by U.S. Department of Energy Office of Energy Efficiency and Renewable Energy Weatherization and Intergovernmental Programs Office. Last Updated: May 2023

Sheet Calculator
A1: Weatherization Assistance Program (WAP) Living Wage Comparison Tool
A2: May 2023
A4: About: The National Renewable Energy Laboratory developed the WAP Living Wage Comparison Calculator using WAP wage survey data collected by the National Association for State Community Services Programs (NASCSP) and Living Wage Data graciously provided by the Massachusetts Institute of Technology Living Wage Calculator (LWC; https://livingwage.mit.edu). The living wage tool provides a county cost of living estimate for all counties in the 50 states and District of Columbia. The device includes county-level cost estimates for housing, childcare, food, transportation, cell phone, broadband services, utilities, and miscellaneous expenses. Using the living wage data, the WAP tool provides insights into the difference between a WAP employee’s hourly wage, the county living wage, and average personal income. The average individual income represents the mean value county residents received for that year (wages, proprietors’ income, dividends, interest, rents, and government benefits). WAP employers and employees can use the calculator to help understand what an employee needs to support his or herself.
A5: Instructions: Select your state and county using the dropdowns in cells C10 and D10, respectively. Then enter your hourly wage in cell E10. Column F autopopulates living wages (in 2022) and average personal income (in 2022) for the county selected. For more information about living wages and county personal income, please see the sources below. Columns G and H show the differentials between the wage entered and the wages in column F. Column H has color-coded results, with orange shades representing negative differentials and green shades representing positive differentials
A6: Sources: | B6: Glasmeier, Amy K. Living Wage Calculator. 2023 Cambridge, MA: Massachusetts Institute of Technology. livingwage.mit.edu.
B7: Bureau of Economic Analysis. 2022. Personal Income by County, Metro, and Other Areas. Washington, DC: US Department of Commerce. https://www.bea.gov/data/income-saving/personal-income-county-metro-and-other-areas.
B8: NASCSP. 2021. Weatherization Workforce Survey: A Survey of Wages and Workforce Development in the Weatherization Assistance Program. Unpublished raw data. https://nascsp.org/wage-surveys/
C10: State (select from menu) | D10: County (select from menu) | E10: Hourly Wage (Enter) | F10: County Living Wage - 1 person household | G10: Difference | H10: % difference
C11: DC | D11: District of Columbia | F11: =SUMIFS('County-level Wage Data'!$G$7:$G$3221,'County-level Wage Data'!$C$7:$C$3221,Calculator!C11,'County-level Wage Data'!$D$7:$D$3221,Calculator!D11) -> 22.15 | G11: =E11-F11 -> -22.15 | H11: =G11/F11 -> -1
F12: County Living Wage - 2 person household* | G12: Difference | H12: % difference
F13: =SUMIFS('County-level Wage Data'!$H$7:$H$3221,'County-level Wage Data'!$C$7:$C$3221,Calculator!C11,'County-level Wage Data'!$D$7:$D$3221,Calculator!D11) -> 42.610001 | G13: =E11-F13 -> -42.610001 | H13: =G13/F13 -> -1
F14: County Mean Personal Income | G14: Difference | H14: % difference
F15: =SUMIFS('County-level Wage Data'!$F$7:$F$3221,'County-level Wage Data'!$C$7:$C$3221,Calculator!C11,'County-level Wage Data'!$D$7:$D$3221,Calculator!D11) -> 30.28846154 | G15: =E11-F15 -> -30.28846154 | H15: =G15/F15 -> -1
A17: * Please note that a 2-person household refers to having one working individual in the household. For more information on additional household types and sizes, please visit livingwage.mit.edu.

Sheet County-level Wage Data (hidden)
E4: Year 2022
D5: United States | E5: 50050 | K5: State | L5: Abbreviation
C6: State | D6: County | E6: Annual Wage | F6: Hourly Wage | G6: Living Wage (1 person no children) | H6: Living Wage (2 person 1 working) | K6: Alabama | L6: AL
D7: Alabama | E7: 41200 | F7: =E7/52/40 -> 19.80769231 | K7: Alaska | L7: AK
C8: AL | D8: Autauga | E8: 42300 | F8: =E8/52/40 -> 20.33653846 | G8: 15.63 | H8: 32.41 | K8: Arizona | L8: AZ
C9: AL | D9: Baldwin | E9: 47900 | F9: 23.02884615 | G9: 16.58 | H9: 33.279999 | K9: Arkansas | L9: AR
C10: AL | D10: Barbour | E10: 34550 | F10: 16.61057692 | G10: 14.81 | H10: 30.08 | K10: California | L10: CA
C11: AL | D11: Bibb | E11: 47500 | F11: 22.83653846 | G11: 16.52 | H11: 32.310001 | K11: Colorado | L11: CO
C12: AL | D12: Blount | E12: 47500 | F12: 22.83653846 | G12: 16.52 | H12: 32.700001 | K12: Connecticut | L12: CT
C13: AL | D13: Bullock | E13: 34550 | F13: 16.61057692 | G13: 15.23 | H13: 31.459999 | K13: Delaware | L13: DE
C14: AL | D14: Butler | E14: 34550 | F14: 16.61057692 | G14: 14.8 | H14: 30.889999 | K14: District of Colombia | L14: DC
C15: AL | D15: Calhoun | E15: 38550 | F15: 18.53365385 | G15: 15.03 | H15: 30.360001 | K15: Florida | L15: FL
C16: AL | D16: Chambers | E16: 34550 | F16: 16.61057692 | G16: 15.72 | H16: 32.389999 | K16: Georgia | L16: GA
C17: AL | D17: Cherokee | E17: 34550 | F17: 16.61057692 | G17: 14.8 | H17: 29.780001 | K17: Hawaii | L17: HI
C18: AL | D18: Chilton | E18: 35400 | F18: 17.01923077 | G18: 15.19 | H18: 30.889999 | K18: Idaho | L18: ID
C19: AL | D19: Choctaw | E19: 34550 | F19: 16.61057692 | G19: 14.8 | H19: 30.57 | K19: Illinois | L19: IL
C20: AL | D20: Clarke | E20: 34550 | F20: 16.61057692 | G20: 14.8 | H20: 31 | K20: Indiana | L20: IN
C21: AL | D21: Clay | E21: 34550 | F21: 16.61057692 | G21: 14.54 | H21: 30.08 | K21: Iowa | L21: IA
C22: AL | D22: Cleburne | E22: 35000 | F22: 16.82692308 | G22: 14.8 | H22: 30.08 | K22: Kansas | L22: KS
C23: AL | D23: Coffee | E23: 42100 | F23: 20.24038462 | G23: 14.92 | H23: 30.24 | K23: Kentucky | L23: KY
C24: AL | D24: Colbert | E24: 38200 | F24: 18.36538462 | G24: 14.76 | H24: 31.66 | K24: Louisiana | L24: LA
C25: AL | D25: Conecuh | E25: 34550 | F25: 16.61057692 | G25: 14.8 | H25: 31 | K25: Maine | L25: ME
C26: AL | D26: Coosa | E26: 34550 | F26: 16.61057692 | G26: 14.95 | H26: 30.280001 | K26: Maryland | L26: MD
C27: AL | D27: Covington | E27: 35400 | F27: 17.01923077 | G27: 14.8 | H27: 30.889999 | K27: Massachusetts | L27: MA
C28: AL | D28: Crenshaw | E28: 35950 | F28: 17.28365385 | G28: 14.8 | H28: 30.08 | K28: Michigan | L28: MI
C29: AL | D29: Cullman | E29: 35950 | F29: 17.28365385 | G29: 15.01 | H29: 31.629999 | K29: Minnesota | L29: MN
C30: AL | D30: Dale | E30: 35750 | F30: 17.1875 | G30: 15.28 | H30: 30.08 | K30: Mississippi | L30: MS
C31: AL | D31: Dallas | E31: 34550 | F31: 16.61057692 | G31: 14.79 | H31: 31.129999 | K31: Missouri | L31: MO
C32: AL | D32: DeKalb | E32: 34550 | F32: 16.61057692 | G32: 14.34 | H32: 29.780001 | K32: Montana | L32: MT
C33: AL | D33: Elmore | E33: 42300 | F33: 20.33653846 | G33: 15.63 | H33: 32.41 | K33: Nebraska | L33: NE
C34: AL | D34: Escambia | E34: 34550 | F34: 16.61057692 | G34: 14.8 | H34: 31 | K34: Nevada | L34: NV
C35: AL | D35: Etowah | E35: 35400 | F35: 17.01923077 | G35: 14.92 | H35: 29.809999 | K35: New Hampshire | L35: NH
C36: AL | D36: Fayette | E36: 34550 | F36: 16.61057692 | G36: 14.8 | H36: 30.57 | K36: New Jersey | L36: NJ
C37: AL | D37: Franklin | E37: 34550 | F37: 16.61057692 | G37: 14.8 | H37: 31.32 | K37: New Mexico | L37: NM
C38: AL | D38: Geneva | E38: 38850 | F38: 18.67788462 | G38: 15.03 | H38: 30.08 | K38: New York | L38: NY
C39: AL | D39: Greene | E39: 34550 | F39: 16.61057692 | G39: 15.03 | H39: 30.57 | K39: North Carolina | L39: NC
C40: AL | D40: Hale | E40: 43500 | F40: 20.91346154 | G40: 16.469999 | H40: 32.189999 | K40: North Dakota | L40: ND
C41: AL | D41: Henry | E41: 37800 | F41: 18.17307692 | G41: 14.87 | H41: 30.08 | K41: Ohio | L41: OH
C42: AL | D42: Houston | E42: 38850 | F42: 18.67788462 | G42: 15.03 | H42: 30.08 | K42: Oklahoma | L42: OK
C43: AL | D43: Jackson | E43: 34550 | F43: 16.61057692 | G43: 14.8 | H43: 29.780001 | K43: Oregon | L43: OR
C44: AL | D44: Jefferson | E44: 47500 | F44: 22.83653846 | G44: 16.52 | H44: 32.700001 | K44: Pennsylvania | L44: PA
C45: AL | D45: Lamar | E45: 34550 | F45: 16.61057692 | G45: 14.8 | H45: 30.57 | K45: Rhode Island | L45: RI
C46: AL | D46: Lauderdale | E46: 38200 | F46: 18.36538462 | G46: 14.76 | H46: 31.66 | K46: South Carolina | L46: SC
C47: AL | D47: Lawrence | E47: 39550 | F47: 19.01442308 | G47: 14.97 | H47: 31.43 | K47: South Dakota | L47: SD
C48: AL | D48: Lee | E48: 48850 | F48: 23.48557692 | G48: 15.84 | H48: 32.849998 | K48: Tennessee | L48: TN
C49: AL | D49: Limestone | E49: 51950 | F49: 24.97596154 | G49: 15.66 | H49: 32.720001 | K49: Texas | L49: TX
C50: AL | D50: Lowndes | E50: 42300 | F50: 20.33653846 | G50: 15.63 | H50: 32.41 | K50: Utah | L50: UT
C51: AL | D51: Macon | E51: 34550 | F51: 16.61057692 | G51: 14.92 | H51: 31.4 | K51: Vermont | L51: VT
C52: AL | D52: Madison | E52: 51950 | F52: 24.97596154 | G52: 15.66 | H52: 32.720001 | K52: Virginia | L52: VA
C53: AL | D53: Marengo | E53: 34650 | F53: 16.65865385 | G53: 14.8 | H53: 30.57 | K53: Washington | L53: WA
C54: AL | D54: Marion | E54: 34550 | F54: 16.61057692 | G54: 14.8 | H54: 30.57 | K54: West Virginia | L54: WV
C55: AL | D55: Marshall | E55: 35500 | F55: 17.06730769 | G55: 14.95 | H55: 29.85 | K55: Wisconsin | L55: WI
C56: AL | D56: Mobile | E56: 36600 | F56: 17.59615385 | G56: 15.77 | H56: 32.139999 | K56: Wyoming | L56: WY
C57: AL | D57: Monroe | E57: 34550 | F57: 16.61057692 | G57: 14.8 | H57: 31
C58: AL | D58: Montgomery | E58: 42300 | F58: 20.33653846 | G58: 15.63 | H58: 32.41
C59: AL | D59: Morgan | E59: 39550 | F59: 19.01442308 | G59: 14.97 | H59: 31.43
C60: AL | D60: Perry | E60: 34550 | F60: 16.61057692 | G60: 14.87 | H60: 30.66
C61: AL | D61: Pickens | E61: 34550 | F61: 16.61057692 | G61: 14.84 | H61: 30.57
C62: AL | D62: Pike | E62: 34550 | F62: 16.61057692 | G62: 15.56 | H62: 31.09
C63: AL | D63: Randolph | E63: 34550 | F63: 16.61057692 | G63: 14.8 | H63: 30.08
C64: AL | D64: Russell | E64: 38200 | F64: 18.36538462 | G64: 15.71 | H64: 32.139999
C65: AL | D65: St. Clair | E65: 47500 | F65: 22.83653846 | G65: 16.52 | H65: 32.700001
C66: AL | D66: Shelby | E66: 47500 | F66: 22.83653846 | G66: 16.52 | H66: 32.700001
C67: AL | D67: Sumter | E67: 34550 | F67: 16.61057692 | G67: 15.58 | H67: 31.610001
C68: AL | D68: Talladega | E68: 34550 | F68: 16.61057692 | G68: 14.97 | H68: 30.280001
C69: AL | D69: Tallapoosa | E69: 35400 | F69: 17.01923077 | G69: 14.78 | H69: 31.33
C70: AL | D70: Tuscaloosa | E70: 43500 | F70: 20.91346154 | G70: 16.469999 | H70: 32.189999
C71: AL | D71: Walker | E71: 35800 | F71: 17.21153846 | G71: 14.8 | H71: 30.959999
C72: AL | D72: Washington | E72: 34550 | F72: =E72/52/40 -> 16.61057692 | G72: 14.89 | H72: 31
C73: AL | D73: Wilcox | E73: 34550 | F73: 16.61057692 | G73: 15.11 | H73: 31.309999
C74: AL | D74: Winston | E74: 34550 | F74: 16.61057692 | G74: 14.8 | H74: 31.32
D76: Alaska | E76: 57250 | F76: 27.52403846
C77: AK | D77: Aleutians East Borough | E77: 51450 | F77: 24.73557692 | G77: 16.799999 | H77: 34.610001
C78: AK | D78: Aleutians West Census Area | E78: 59500 | F78: 28.60576923 | G78: 18.83 | H78: 39.18
C79: AK | D79: Anchorage Municipality | E79: 62600 | F79: 30.09615385 | G79: 17.27 | H79: 35.93
C80: AK | D80: Bethel Census Area | E80: 55450 | F80: 26.65865385 | G80: 19.860001 | H80: 37.290001
C81: AK | D81: Bristol Bay Borough | E81: 61150 | F81: 29.39903846 | G81: 15.91 | H81: 34.400002
C82: AK | D82: Denali Borough | E82: 62600 | F82: 30.09615385 | G82: 18.26 | H82: 37.740002
C83: AK | D83: Dillingham Census Area | E83: 51450 | F83: 24.73557692 | G83: 17.139999 | H83: 34.32
C84: AK | D84: Fairbanks North Star Borough | E84: 54800 | F84: 26.34615385 | G84: 17.27 | H84: 37.310001
C85: AK | D85: Haines Borough | E85: 51450 | F85: 24.73557692 | G85: 16.24 | H85: 34.84
C86: AK | D86: Hoonah-Angoon Census Area | E86: 51450 | F86: 24.73557692 | G86: 16.629999 | H86: 33.93
C87: AK | D87: Juneau City and Borough | E87: 62600 | F87: 30.09615385 | G87: 17.85 | H87: 35.619999
C88: AK | D88: Kenai Peninsula Borough | E88: 55100 | F88: 26.49038462 | G88: 16.83 | H88: 35.150002
C89: AK | D89: Ketchikan Gateway Borough | E89: 55900 | F89: 26.875 | G89: 17.34 | H89: 33.400002
C90: AK | D90: Kodiak Island Borough | E90: 60700 | F90: 29.18269231 | G90: 18.440001 | H90: 38.080002
C91: AK | D91: Kusilvak Census Area | E91: 51450 | F91: 24.73557692 | G91: 15.34 | H91: 30.07
C92: AK | D92: Lake and Peninsula Borough | E92: 51450 | F92: 24.73557692 | G92: 15.12 | H92: 30.540001
C93: AK | D93: Matanuska-Susitna Borough | E93: 53100 | F93: 25.52884615 | G93: 16.33 | H93: 33.98
C94: AK | D94: Nome Census Area | E94: 51650 | F94: 24.83173077 | G94: 19.49 | H94: 36.23
C95: AK | D95: North Slope Borough | E95: 52600 | F95: 25.28846154 | G95: 18.67 | H95: 38.18
C96: AK | D96: Northwest Arctic Borough | E96: 51450 | F96: 24.73557692 | G96: 18.25 | H96: 36.700001
C97: AK | D97: Petersburg Borough | E97: 51450 | F97: 24.73557692 | G97: 16.950001 | H97: 34.630001
C98: AK | D98: Prince of Wales-Hyder Census Area | E98: 51450 | F98: 24.73557692 | G98: 16.33 | H98: 32.450001
C99: AK | D99: Sitka City and Borough | E99: 57250 | F99: 27.52403846 | G99: 17.48 | H99: 35.200001
C100: AK | D100: Skagway Municipality | E100: 51800 | F100: 24.90384615 | G100: 17.57 | H100: 35.84
C101: AK | D101: Southeast Fairbanks Census Area | E101: 52950 | F101: 25.45673077 | G101: 17.629999 | H101: 35.189999
C102: AK | D102: Valdez-Cordova Census Area | E102: 61750 | F102: 29.6875 | G102: 16.469999 | H102: 35.400002
C103: AK | D103: Wrangell City and Borough | E103: 51450 | F103: 24.73557692 | G103: 15.79 | H103: 32.18
C104: AK | D104: Yakutat City and Borough | E104: 51650 | F104: 24.83173077 | G104: 16.959999 | H104: 34.57
C105: AK | D105: Yukon-Koyukuk Census Area | E105: 51450 | F105: 24.73557692 | G105: 15.27 | H105: 30.299999
D107: Arizona | E107: 45850 | F107: 22.04326923
C108: AZ | D108: Apache | E108: 31050 | F108: 14.92788462 | G108: 15.31 | H108: 32.959999
C109: AZ | D109: Cochise | E109: 36150 | F109: 17.37980769 | G109: 16.17 | H109: 32.43
C110: AZ | D110: Coconino | E110: 48100 | F110: 23.125 | G110: 19.440001 | H110: 37.450001
C111: AZ | D111: Gila | E111: 33750 | F111: 16.22596154 | G111: 16.85 | H111: 34.16
C112: AZ | D112: Graham | E112: 37050 | F112: 17.8125 | G112: 17.15 | H112: 32.799999
C113: AZ | D113: Greenlee | E113: 40150 | F113: 19.30288462 | G113: 15.35 | H113: 32.07
C114: AZ | D114: La Paz | E114: 32900 | F114: 15.81730769 | G114: 16.34 | H114: 33.110001
C115: AZ | D115: Maricopa | E115: 49500 | F115: 23.79807692 | G115: 18.48 | H115: 35.330002
C116: AZ | D116: Mohave | E116: 34900 | F116: 16.77884615 | G116: 16.030001 | H116: 32.43
C117: AZ | D117: Navajo | E117: 31050 | F117: 14.92788462 | G117: 15.79 | H117: 33.59
C118: AZ | D118: Pima | E118: 42950 | F118: 20.64903846 | G118: 16.02 | H118: 33.919998
C119: AZ | D119: Pinal | E119: 49500 | F119: 23.79807692 | G119: 18.48 | H119: 36.18
C120: AZ | D120: Santa Cruz | E120: 31050 | F120: 14.92788462 | G120: 15.36 | H120: 31.99
C121: AZ | D121: Yavapai | E121: 39950 | F121: 19.20673077 | G121: 16.51 | H121: 34.759998
C122: AZ | D122: Yuma | E122: 32050 | F122: 15.40865385 | G122: 16.450001 | H122: 32.419998
D124: Arkansas | E124: 38050 | F124: 18.29326923
C125: AR | D125: Arkansas | E125: 34100 | F125: 16.39423077 | G125: 14.59 | H125: 30.940001
C126: AR | D126: Ashley | E126: 33900 | F126: 16.29807692 | G126: 14.35 | H126: 29.639999
C127: AR | D127: Baxter | E127: 33750 | F127: 16.22596154 | G127: 14.67 | H127: 31.23
C128: AR | D128: Benton | E128: 46900 | F128: 22.54807692 | G128: 15.75 | H128: 34.959999
C129: AR | D129: Boone | E129: 33750 | F129: 16.22596154 | G129: 14.35 | H129: 30.440001
C130: AR | D130: Bradley | E130: 33750 | F130: 16.22596154 | G130: 14.35 | H130: 29.59
C131: AR | D131: Calhoun | E131: 34550 | F131: 16.61057692 | G131: 14.94 | H131: 30.280001
C132: AR | D132: Carroll | E132: 35250 | F132: 16.94711538 | G132: 14.08 | H132: 29.549999
C133: AR | D133: Chicot | E133: 33750 | F133: 16.22596154 | G133: 14.65 | H133: 29.5
C134: AR | D134: Clark | E134: 36600 | F134: 17.59615385 | G134: 14.37 | H134: 29.59
C135: AR | D135: Clay | E135: 33750 | F135: 16.22596154 | G135: 14.42 | H135: 29.32
C136: AR | D136: Cleburne | E136: 34300 | F136: =E136/52/40 -> 16.49038462 | G136: 14.66 | H136: 30.379999
C137: AR | D137: Cleveland | E137: 33750 | F137: 16.22596154 | G137: 15.05 | H137: 30.42
C138: AR | D138: Columbia | E138: 33750 | F138: 16.22596154 | G138: 14.42 | H138: 30.559999
C139: AR | D139: Conway | E139: 34300 | F139: 16.49038462 | G139: 14.35 | H139: 30.190001
C140: AR | D140: Craighead | E140: 36900 | F140: 17.74038462 | G140: 14.97 | H140: 31.870001
C141: AR | D141: Crawford | E141: 34000 | F141: 16.34615385 | G141: 15.02 | H141: 31.1
C142: AR | D142: Crittenden | E142: 43050 | F142: 20.69711538 | G142: 16.01 | H142: 32.830002
C143: AR | D143: Cross | E143: 35650 | F143: 17.13942308 | G143: 14.63 | H143: 31.26
C144: AR | D144: Dallas | E144: 33750 | F144: 16.22596154 | G144: 14.35 | H144: 29.639999
C145: AR | D145: Desha | E145: 33750 | F145: 16.22596154 | G145: 14.35 | H145: 29.719999
C146: AR | D146: Drew | E146: 35400 | F146: 17.01923077 | G146: 14.45 | H146: 29.82
C147: AR | D147: Faulkner | E147: 44100 | F147: 21.20192308 | G147: 16.1 | H147: 32.169998
C148: AR | D148: Franklin | E148: 33750 | F148: 16.22596154 | G148: 14.53 | H148: 29.59
C149: AR | D149: Fulton | E149: 33750 | F149: 16.22596154 | G149: 14 | H149: 30.879999
C150: AR | D150: Garland | E150: 33900 | F150: 16.29807692 | G150: 15.24 | H150: 32.419998
C151: AR | D151: Grant | E151: 40100 | F151: 19.27884615 | G151: 15.52 | H151: 30.629999
C152: AR | D152: Greene | E152: 35300 | F152: 16.97115385 | G152: 14.59 | H152: 30.32
C153: AR | D153: Hempstead | E153: 33750 | F153: 16.22596154 | G153: 14.61 | H153: 30.23
C154: AR | D154: Hot Spring | E154: 33750 | F154: 16.22596154 | G154: 14.33 | H154: 30.040001
C155: AR | D155: Howard | E155: 33750 | F155: 16.22596154 | G155: 14.17 | H155: 29.139999
C156: AR | D156: Independence | E156: 33950 | F156: 16.32211538 | G156: 14.35 | H156: 29.870001
C157: AR | D157: Izard | E157: 33850 | F157: 16.27403846 | G157: 14.35 | H157: 30.139999
C158: AR | D158: Jackson | E158: 33750 | F158: 16.22596154 | G158: 14.42 | H158: 30.24
C159: AR | D159: Jefferson | E159: 33750 | F159: 16.22596154 | G159: 15.05 | H159: 30.969999
C160: AR | D160: Johnson | E160: 33750 | F160: 16.22596154 | G160: 14.44 | H160: 30.450001
C161: AR | D161: Lafayette | E161: 33750 | F161: 16.22596154 | G161: 14.35 | H161: 29.049999
C162: AR | D162: Lawrence | E162: 33750 | F162: 16.22596154 | G162: 14.35 | H162: 29.719999
C163: AR | D163: Lee | E163: 33750 | F163: 16.22596154 | G163: 14.35 | H163: 31.889999
C164: AR | D164: Lincoln | E164: 33750 | F164: 16.22596154 | G164: 15.05 | H164: 30.370001
C165: AR | D165: Little River | E165: 35850 | F165: 17.23557692 | G165: 14.42 | H165: 29.32
C166: AR | D166: Logan | E166: 33750 | F166: 16.22596154 | G166: 14.08 | H166: 29.5
C167: AR | D167: Lonoke | E167: 44100 | F167: 21.20192308 | G167: 16.1 | H167: 32.43
C168: AR | D168: Madison | E168: 46900 | F168: 22.54807692 | G168: 15.75 | H168: 32.939999
C169: AR | D169: Marion | E169: 33750 | F169: 16.22596154 | G169: 14.36 | H169: 29.43
C170: AR | D170: Miller | E170: 38150 | F170: 18.34134615 | G170: 15.83 | H170: 31.549999
C171: AR | D171: Mississippi | E171: 33750 | F171: 16.22596154 | G171: 14.32 | H171: 29.639999
C172: AR | D172: Monroe | E172: 33750 | F172: 16.22596154 | G172: 14 | H172: 29.049999
C173: AR | D173: Montgomery | E173: 33750 | F173: 16.22596154 | G173: 14.35 | H173: 29.59
C174: AR | D174: Nevada | E174: 33750 | F174: 16.22596154 | G174: 14.85 | H174: 30.059999
C175: AR | D175: Newton | E175: 33750 | F175: 16.22596154 | G175: 14.35 | H175: 29.59
C176: AR | D176: Ouachita | E176: 33750 | F176: 16.22596154 | G176: 15.02 | H176: 29.6
C177: AR | D177: Perry | E177: 44100 | F177: 21.20192308 | G177: 16.1 | H177: 31.049999
C178: AR | D178: Phillips | E178: 33750 | F178: 16.22596154 | G178: 14 | H178: 31.889999
C179: AR | D179: Pike | E179: 33750 | F179: 16.22596154 | G179: 14.64 | H179: 29.32
C180: AR | D180: Poinsett | E180: 33750 | F180: 16.22596154 | G180: 14.42 | H180: 30.6
C181: AR | D181: Polk | E181: 33750 | F181: 16.22596154 | G181: 14.06 | H181: 29.75
C182: AR | D182: Pope | E182: 33900 | F182: 16.29807692 | G182: 14.19 | H182: 31.09
C183: AR | D183: Prairie | E183: 33900 | F183: 16.29807692 | G183: 14.4 | H183: 29.66
C184: AR | D184: Pulaski | E184: 44100 | F184: 21.20192308 | G184: 16.1 | H184: 32.48
C185: AR | D185: Randolph | E185: 33750 | F185: 16.22596154 | G185: 14.89 | H185: 29.959999
C186: AR | D186: St. Francis | E186: 33750 | F186: 16.22596154 | G186: 14.53 | H186: 29.59
C187: AR | D187: Saline | E187: 44100 | F187: 21.20192308 | G187: 16.1 | H187: 32.34
C188: AR | D188: Scott | E188: 33750 | F188: 16.22596154 | G188: 14.35 | H188: 29.370001
C189: AR | D189: Searcy | E189: 33750 | F189: 16.22596154 | G189: 14.35 | H189: 29.139999
C190: AR | D190: Sebastian | E190: 34000 | F190: =E190/52/40 -> 16.34615385 | G190: 15.02 | H190: 31.52
C191: AR | D191: Sevier | E191: 34300 | F191: 16.49038462 | G191: 14.35 | H191: 29.690001
C192: AR | D192: Sharp | E192: 33750 | F192: 16.22596154 | G192: 14.28 | H192: 30.139999
C193: AR | D193: Stone | E193: 33750 | F193: 16.22596154 | G193: 14.35 | H193: 29.459999
C194: AR | D194: Union | E194: 34950 | F194: 16.80288462 | G194: 15.22 | H194: 29.690001
C195: AR | D195: Van Buren | E195: 33750 | F195: 16.22596154 | G195: 14.21 | H195: 29.639999
C196: AR | D196: Washington | E196: 46900 | F196: 22.54807692 | G196: 15.75 | H196: 34.959999
C197: AR | D197: White | E197: 34100 | F197: 16.39423077 | G197: 14.11 | H197: 29.969999
C198: AR | D198: Woodruff | E198: 33750 | F198: 16.22596154 | G198: 14.35 | H198: 29.59
C199: AR | D199: Yell | E199: 33750 | F199: 16.22596154 | G199: 14.82 | H199: 29.940001
F200: =E200/52/40 -> 
D201: California | E201: 56450 | F201: 27.13942308
C202: CA | D202: Alameda | E202: 74200 | F202: 35.67307692 | G202: 22.35 | H202: 48.150002
C203: CA | D203: Alpine | E203: 50900 | F203: 24.47115385 | G203: 16.389999 | H203: 35.080002
C204: CA | D204: Amador | E204: 48550 | F204: 23.34134615 | G204: 17.82 | H204: 35.490002
C205: CA | D205: Butte | E205: 43650 | F205: 20.98557692 | G205: 17.139999 | H205: 36.41
C206: CA | D206: Calaveras | E206: 50400 | F206: 24.23076923 | G206: 16.49 | H206: 35.150002
... 2970 more rows
